fUST/lending_fUST_20250119
["ID","MTS","AMOUNT","RATE_DAILY","PERIOD"]
[349521633,1737276633281,-500.0,0.00021917,3]
[349521634,1737276633290,-500.0,0.00021917,3]
[349521635,1737276633299,-500.0,0.00021917,3]
[349521636,1737276633309,-500.0,0.00021917,3]
[349521637,1737276633317,-500.0,0.00021917,3]
[349521638,1737276633326,-500.0,0.00021917,3]
[349521639,1737276633335,-500.0,0.00021917,3]
[349521640,1737276633344,-500.0,0.00021917,3]
[349521641,1737276633354,-814.87,0.00021917,3]
[349521642,1737276633363,-500.0,0.00021917,3]
[349521643,1737276633372,-504.56,0.00021917,3]
[349521644,1737276633381,-500.0,0.00021917,3]
[349521645,1737276633391,-500.0,0.00021917,3]
[349521646,1737276633400,-500.0,0.00021917,3]
[349521647,1737276633409,-500.0,0.00021917,3]
[349521648,1737276633419,-500.0,0.00021917,3]
[349521649,1737276633429,-500.0,0.00021917,3]
[349521650,1737276633439,-500.0,0.00021917,3]
[349521651,1737276633448,-500.0,0.00021917,3]
[349521652,1737276633457,-500.0,0.00021917,3]
[349521653,1737276633467,-500.0,0.00021917,3]
[349521654,1737276633476,-500.0,0.00021917,3]
[349521655,1737276633485,-504.35536272,0.00021917,2]
[349521656,1737276633494,-500.0,0.00021917,3]
[349521657,1737276633503,-500.0,0.00021917,3]
[349521658,1737276633512,-500.0,0.00021917,3]
[349521659,1737276633521,-500.0,0.00021917,3]
[349521660,1737276633530,-500.0,0.00021917,3]
[349521661,1737276633540,-500.0,0.00021917,3]
[349521662,1737276633548,-500.0,0.00021917,3]
[349521663,1737276633557,-4112.73,0.00021917,3]
[349521664,1737276633566,-500.0,0.00021917,3]
[349521665,1737276633576,-8636.63,0.00021917,3]
[349521666,1737276633585,-510.91,0.00021917,3]
[349521667,1737276633594,-500.0,0.00021917,3]
[349521668,1737276633603,-528.29,0.00021917,3]
[349521669,1737276633613,-500.0,0.00021917,3]
[349521670,1737276633622,-500.0,0.00021917,3]
[349521671,1737276633631,-500.0,0.00021917,3]
[349521672,1737276633640,-500.0,0.00021917,3]
[349521673,1737276633649,-500.0,0.00021917,2]
[349521674,1737276633658,-500.0,0.00021917,3]
[349521675,1737276633667,-3622.64,0.00021917,3]
[349521676,1737276633676,-1968.82,0.00021917,3]
[349521677,1737276633686,-19113.93,0.00021917,3]
[349521678,1737276633695,-897.77,0.00021917,3]
[349521679,1737276633713,-500.0,0.00021917,3]
[349521680,1737276633724,-1004.02,0.00021917,3]
[349521681,1737276633734,-500.0,0.00021917,3]
[349521682,1737276633743,-500.0,0.00021917,3]
[349521683,1737276633754,-500.0,0.00021917,3]
[349521684,1737276633763,-500.0,0.00021917,3]
[349521685,1737276633773,-500.0,0.00021917,3]
[349521686,1737276633783,-500.0,0.00021917,2]
[349521687,1737276633792,-549.97,0.00021917,3]
[349521688,1737276633801,-500.0,0.00021917,3]
[349521689,1737276633811,-792.3,0.00021917,3]
[349521690,1737276633820,-500.0,0.00021917,3]
[349521691,1737276633830,-500.0,0.00021917,3]
[349521692,1737276633839,-500.0,0.00021917,3]
[349521693,1737276633849,-380.81998546,0.00021917,3]
[349521694,1737276633858,-500.0,0.00021917,3]
[349521695,1737276633867,-500.0,0.00021917,3]
[349521696,1737276633876,-499.0,0.00021917,2]
[349521697,1737276633886,-500.0,0.00021917,3]
[349521698,1737276633896,-500.0,0.00021917,3]
[349521699,1737276633905,-500.0,0.00021917,3]
[349521700,1737276633915,-13109.04,0.00021917,3]
[349521701,1737276633924,-1398.85,0.00021917,3]
[349521702,1737276633934,-500.0,0.00021917,3]
[349521703,1737276633943,-173.20780243,0.00021917,3]
[349521704,1737276633954,-500.0,0.00021917,3]
[349521705,1737276633964,-500.0,0.00021917,2]
[349521706,1737276633975,-585.24,0.00021917,3]
[349521707,1737276633985,-793.92,0.00021917,3]
[349521708,1737276633996,-1699.44,0.00021917,3]
[349521709,1737276634145,-500.0,0.00021917,3]
[349521710,1737276634156,-4420.41,0.00021917,3]
[349521711,1737276634166,-500.0,0.00021917,3]
[349521712,1737276634175,-7007.89,0.00021917,3]
[349521713,1737276634185,-500.0,0.00021917,3]
[349521714,1737276634195,-609.18,0.00021917,3]
[349521715,1737276634205,-654.3,0.00021917,3]
[349521716,1737276634214,-500.0,0.00021917,3]
[349521717,1737276634223,-500.0,0.00021917,3]
[349521718,1737276634233,-500.0,0.00021917,3]
[349521719,1737276634243,-500.0,0.00021917,3]
[349521720,1737276634252,-500.0,0.00021917,3]
[349521721,1737276634262,-500.0,0.00021917,3]
[349521722,1737276634271,-500.0,0.00021917,3]
[349521723,1737276634281,-500.0,0.00021917,3]
[349521724,1737276634290,-500.0,0.00021917,3]
[349521725,1737276634299,-2037.63,0.00021917,3]
[349521726,1737276634308,-500.0,0.00021917,3]
[349521727,1737276634318,-517.3,0.00021917,3]
[349521728,1737276634328,-500.0,0.00021917,3]
[349521729,1737276634337,-500.0,0.00021917,3]
[349521730,1737276634346,-500.0,0.00021917,3]
[349521731,1737276634356,-500.0,0.00021917,3]
[349521732,1737276634365,-500.0,0.00021917,3]
[349521733,1737276634375,-1252.86,0.00021917,3]
[349521734,1737276634385,-1493.86,0.00021917,3]
[349521735,1737276634394,-500.0,0.00021917,3]
[349521736,1737276634404,-1518.29,0.00021917,3]
[349521737,1737276634413,-153.0,0.00022,2]
[349521738,1737276634423,-153.0,0.00022,2]
[349521739,1737276634432,-500.0,0.00022053,2]
[349521740,1737276634441,-552.57800335,0.00022053,2]
[349521741,1737276634450,-500.0,0.00022053,2]
[349521742,1737276634460,-500.0,0.00022053,2]
[349521743,1737276634470,-500.0,0.00022053,2]
[349521744,1737276634479,-500.0,0.00022053,2]
[349521745,1737276634489,-500.0,0.00022053,2]
[349521746,1737276634499,-500.0,0.00022053,2]
[349521747,1737276634509,-500.0,0.00022053,2]
[349521748,1737276634518,-500.0,0.00022053,2]
[349521749,1737276634527,-500.0,0.00022053,2]
[349521750,1737276634537,-500.0,0.00022053,2]
[349521751,1737276634546,-500.0,0.00022053,2]
[349521752,1737276634556,-273.40364052,0.00022053,2]
[349521753,1737276634565,-500.0,0.00022053,2]
[349521754,1737276634575,-500.0,0.00022053,2]
[349521755,1737276634584,-500.0,0.00022053,2]
[349521756,1737276634593,-500.0,0.00022053,2]
[349521757,1737276634603,-522.2895985,0.00022053,2]
[349521758,1737276634613,-500.0,0.00022053,2]
[349521759,1737276634622,-500.0,0.00022053,2]
[349521760,1737276634631,-500.0,0.00022053,2]
[349521761,1737276634641,-500.0,0.00022053,2]
[349521762,1737276634651,-500.0,0.00022053,2]
[349521763,1737276634659,-500.0,0.00022053,2]
[349521764,1737276634668,-500.0,0.00022053,2]
[349521765,1737276634677,-623.04389756,0.00022053,2]
[349521766,1737276634687,-313.84434216,0.00022054,3]
[349521767,1737276634696,-500.0,0.00022054,3]
[349521768,1737276634705,-500.0,0.00022054,3]
[349521769,1737276634714,-500.0,0.00022054,3]
[349521770,1737276634723,-500.0,0.00022054,3]
[349521771,1737276634732,-500.0,0.00022054,3]
[349521772,1737276634741,-500.0,0.00022054,3]
[349521773,1737276634750,-500.0,0.00022054,3]
[349521774,1737276634759,-500.0,0.00022054,3]
[349521775,1737276634768,-324.47178607,0.00022054,3]
[349521776,1737276634778,-500.0,0.00022054,3]
[349521777,1737276634786,-500.0,0.00022054,3]
[349521778,1737276634795,-333.32,0.00022054,3]
[349521779,1737276634804,-561.69703487,0.00022054,3]
[349521780,1737276634813,-1424.38,0.00022054,3]
[349521781,1737276634822,-500.0,0.00022054,3]
[349521782,1737276634830,-500.0,0.00022054,3]
[349521783,1737276634840,-500.0,0.00022054,3]
[349521784,1737276634849,-500.0,0.00022054,3]
[349521785,1737276634858,-500.0,0.00022054,3]
[349521786,1737276634867,-500.0,0.00022054,3]
[349521787,1737276634876,-500.0,0.00022054,3]
[349521788,1737276634885,-500.0,0.00022054,3]
[349521789,1737276634894,-500.0,0.00022054,3]
[349521790,1737276634904,-500.0,0.00022054,3]
[349521791,1737276634915,-500.0,0.00022054,3]
[349521792,1737276634924,-814.87,0.00022054,3]
[349521793,1737276634933,-500.0,0.00022054,3]
[349521794,1737276634943,-504.56,0.00022054,3]
[349521795,1737276634952,-500.0,0.00022054,3]
[349521796,1737276634961,-500.0,0.00022054,3]
[349521797,1737276634970,-183.82209283,0.00022054,3]
[349521798,1737276634980,-500.0,0.00022054,3]
[349521799,1737276634989,-500.0,0.00022054,3]
[349521800,1737276634998,-500.0,0.00022054,3]
[349521801,1737276635010,-500.0,0.00022054,3]
[349521802,1737276635020,-500.0,0.00022054,3]
[349521803,1737276635030,-214.22701374,0.00022054,3]
[349521804,1737276635040,-500.0,0.00022054,3]
[349521805,1737276635050,-500.0,0.00022054,3]
[349521806,1737276635059,-500.0,0.00022054,3]
[349521807,1737276635069,-500.0,0.00022054,3]
[349521808,1737276635078,-500.0,0.00022054,3]
[349521809,1737276635088,-500.0,0.00022054,3]
[349521810,1737276635096,-500.0,0.00022054,3]
[349521811,1737276635105,-500.0,0.00022054,3]
[349521812,1737276635115,-500.0,0.00022054,3]
[349521813,1737276635124,-4112.73,0.00022054,3]
[349521814,1737276635133,-500.0,0.00022054,3]
[349521815,1737276635142,-8636.63,0.00022054,3]
[349521816,1737276635155,-510.91,0.00022054,3]
[349521817,1737276635165,-500.0,0.00022054,3]
[349521818,1737276635173,-528.29,0.00022054,3]
[349521819,1737276635186,-500.0,0.00022054,3]
[349521820,1737276635197,-500.0,0.00022054,3]
[349521821,1737276635206,-500.0,0.00022054,3]
[349521822,1737276635216,-500.0,0.00022054,3]
[349521823,1737276635231,-500.0,0.00022054,3]
[349521824,1737276635246,-500.0,0.00022054,2]
[349521825,1737276635259,-3622.64,0.00022054,3]
[349521826,1737276635269,-1968.82,0.00022054,3]
[349521827,1737276635279,-19113.93,0.00022054,3]
[349521828,1737276635290,-897.77,0.00022054,3]
[349521829,1737276635300,-500.0,0.00022054,3]
[349521830,1737276635310,-1004.02,0.00022054,3]
[349521831,1737276635319,-500.0,0.00022054,3]
[349521832,1737276635329,-500.0,0.00022054,3]
[349521833,1737276635338,-500.0,0.00022054,3]
[349521834,1737276635348,-500.0,0.00022054,3]
[349521835,1737276635357,-500.0,0.00022054,3]
[349521836,1737276635366,-549.97,0.00022054,3]
[349521837,1737276635376,-500.0,0.00022054,3]
[349521838,1737276635386,-792.3,0.00022054,3]
[349521839,1737276635395,-500.0,0.00022054,3]
[349521840,1737276635405,-500.0,0.00022054,3]
[349521841,1737276635415,-500.0,0.00022054,3]
[349521842,1737276635424,-500.0,0.00022054,3]
[349521843,1737276635434,-500.0,0.00022054,3]
[349521844,1737276635443,-500.0,0.00022054,3]
[349521845,1737276635453,-500.0,0.00022054,3]
[349521846,1737276635463,-500.0,0.00022054,3]
[349521847,1737276635473,-13109.04,0.00022054,3]
[349521848,1737276635482,-1398.85,0.00022054,3]
[349521849,1737276635492,-500.0,0.00022054,3]
[349521850,1737276635501,-500.0,0.00022054,3]
[349521851,1737276635513,-500.0,0.00022054,2]
[349521852,1737276635523,-585.24,0.00022054,3]
[349521853,1737276635532,-793.92,0.00022054,3]
[349521854,1737276635542,-1699.44,0.00022054,3]
[349521855,1737276635552,-305.84971959,0.00022054,3]
[349521856,1737276635561,-4420.41,0.00022054,3]
[349521857,1737276635570,-500.0,0.00022054,3]
[349521858,1737276635579,-7007.89,0.00022054,3]
[349521859,1737276635588,-151.0,0.00022054,7]
[349521860,1737276635598,-151.0,0.00022054,7]
[349521861,1737276635607,-500.0,0.00022054,3]
[349521862,1737276635617,-609.18,0.00022054,3]
[349521863,1737276635626,-654.3,0.00022054,3]
[349521864,1737276635635,-500.0,0.00022054,3]
[349521865,1737276635645,-500.0,0.00022054,3]
[349521866,1737276635654,-151.0,0.00022054,7]
[349521867,1737276635664,-151.0,0.00022054,7]
[349521868,1737276635674,-500.0,0.00022054,3]
[349521869,1737276635683,-500.0,0.00022054,3]
[349521870,1737276635693,-500.0,0.00022054,3]
[349521871,1737276635703,-500.0,0.00022054,3]
[349521872,1737276635713,-500.0,0.00022054,3]
[349521873,1737276635722,-500.0,0.00022054,3]
[349521874,1737276635731,-500.0,0.00022054,3]
[349521875,1737276635740,-2037.63,0.00022054,3]
[349521876,1737276635750,-500.0,0.00022054,3]
[349521877,1737276635760,-517.3,0.00022054,3]
[349521878,1737276635769,-500.0,0.00022054,3]
[349521879,1737276635779,-500.0,0.00022054,3]
[349521880,1737276635788,-151.023224,0.00022054,7]
[349521881,1737276635797,-500.0,0.00022054,3]
[349521882,1737276635807,-154.933743,0.00022054,7]
[349521883,1737276635815,-500.0,0.00022054,3]
[349521884,1737276635825,-500.0,0.00022054,3]
[349521885,1737276635834,-151.0,0.00022054,7]
[349521886,1737276635843,-1252.86,0.00022054,3]
[349521887,1737276635852,-1493.86,0.00022054,3]
[349521888,1737276635861,-500.0,0.00022054,3]
[349521889,1737276635871,-1518.29,0.00022054,3]
[349521890,1737276635880,-500.0,0.00022073,2]
[349521891,1737276635890,-502.61819718,0.00022073,2]
[349521892,1737276635900,-500.0,0.00022073,2]
[349521893,1737276635909,-202.43112113,0.00022073,2]
[349521894,1737276635918,-506.12787529,0.00022073,2]
[349521895,1737276635927,-429.7617252,0.00022076,2]
[349521896,1737276635936,-500.0,0.0002219,2]
[349521897,1737276635946,-284.82962973,0.0002219,2]
[349521898,1737276635954,-333.32464998,0.0002219,2]
[349521899,1737276635964,-500.0,0.0002219,2]
[349521900,1737276635973,-500.0,0.00022191,3]
[349521901,1737276635982,-500.0,0.00022191,3]
[349521902,1737276635991,-500.0,0.00022191,3]
[349521903,1737276636000,-500.0,0.00022191,3]
[349521904,1737276636011,-286.30877871,0.00022191,3]
[349521905,1737276636020,-500.0,0.00022191,3]
[349521906,1737276636029,-500.0,0.00022191,3]
[349521907,1737276636039,-500.0,0.00022191,3]
[349521908,1737276636049,-500.0,0.00022191,3]
[349521909,1737276636058,-500.0,0.00022191,3]
[349521910,1737276636068,-1424.38,0.00022191,3]
[349521911,1737276636078,-500.0,0.00022191,3]
[349521912,1737276636087,-500.0,0.00022191,3]
[349521913,1737276636096,-500.0,0.00022191,3]
[349521914,1737276636105,-500.0,0.00022191,3]
[349521915,1737276636115,-500.0,0.00022191,3]
[349521916,1737276636124,-500.0,0.00022191,3]
[349521917,1737276636132,-500.0,0.00022191,3]
[349521918,1737276636141,-500.0,0.00022191,3]
[349521919,1737276636156,-640.91251532,0.00022191,3]
[349521920,1737276636166,-500.0,0.00022191,3]
[349521921,1737276636175,-500.0,0.00022191,3]
[349521922,1737276636184,-814.87,0.00022191,3]
[349521923,1737276636195,-500.0,0.00022191,3]
[349521924,1737276636204,-504.56,0.00022191,3]
[349521925,1737276636213,-500.0,0.00022191,3]
[349521926,1737276636222,-500.0,0.00022191,3]
[349521927,1737276636232,-500.0,0.00022191,3]
[349521928,1737276636240,-500.0,0.00022191,3]
[349521929,1737276636250,-500.0,0.00022191,3]
[349521930,1737276636260,-500.0,0.00022191,3]
[349521931,1737276636270,-453.35064303,0.00022191,3]
[349521932,1737276636280,-500.0,0.00022191,3]
[349521933,1737276636290,-500.0,0.00022191,3]
[349521934,1737276636299,-500.0,0.00022191,3]
[349521935,1737276636309,-500.0,0.00022191,3]
[349521936,1737276636319,-500.0,0.00022191,3]
[349521937,1737276636328,-500.0,0.00022191,3]
[349521938,1737276636424,-537.95228879,0.00022191,3]
[349521939,1737276636434,-500.0,0.00022191,3]
[349521940,1737276636443,-500.0,0.00022191,3]
[349521941,1737276636453,-4112.73,0.00022191,3]
[349521942,1737276636463,-500.0,0.00022191,3]
[349521943,1737276636472,-8636.63,0.00022191,3]
[349521944,1737276636481,-510.91,0.00022191,3]
[349521945,1737276636490,-500.0,0.00022191,3]
[349521946,1737276636499,-528.29,0.00022191,3]
[349521947,1737276636510,-500.0,0.00022191,3]
[349521948,1737276636520,-500.0,0.00022191,3]
[349521949,1737276636529,-500.0,0.00022191,3]
[349521950,1737276636538,-343.46,0.00022191,3]
[349521951,1737276636547,-500.0,0.00022191,3]
[349521952,1737276636556,-500.0,0.00022191,2]
[349521953,1737276636565,-3622.64,0.00022191,3]
[349521954,1737276636574,-1968.82,0.00022191,3]
[349521955,1737276636583,-19113.93,0.00022191,3]
[349521956,1737276636592,-897.77,0.00022191,3]
[349521957,1737276636601,-500.0,0.00022191,3]
[349521958,1737276636610,-1004.02,0.00022191,3]
[349521959,1737276636621,-500.0,0.00022191,3]
[349521960,1737276636631,-500.0,0.00022191,3]
[349521961,1737276636640,-500.0,0.00022191,3]
[349521962,1737276636649,-500.0,0.00022191,3]
[349521963,1737276636658,-500.0,0.00022191,3]
[349521964,1737276636668,-549.97,0.00022191,3]
[349521965,1737276636677,-500.0,0.00022191,3]
[349521966,1737276636686,-792.3,0.00022191,3]
[349521967,1737276636695,-500.0,0.00022191,3]
[349521968,1737276636704,-500.0,0.00022191,3]
[349521969,1737276636713,-500.0,0.00022191,3]
[349521970,1737276636722,-500.0,0.00022191,3]
[349521971,1737276636731,-500.0,0.00022191,3]
[349521972,1737276636741,-500.0,0.00022191,3]
[349521973,1737276636750,-500.0,0.00022191,3]
[349521974,1737276636760,-500.0,0.00022191,3]
[349521975,1737276636770,-13109.04,0.00022191,3]
[349521976,1737276636778,-1398.85,0.00022191,3]
[349521977,1737276636787,-500.0,0.00022191,3]
[349521978,1737276636796,-500.0,0.00022191,3]
[349521979,1737276636806,-500.0,0.00022191,2]
[349521980,1737276636815,-585.24,0.00022191,3]
[349521981,1737276636824,-793.92,0.00022191,3]
[349521982,1737276636834,-1699.44,0.00022191,3]
[349521983,1737276636843,-4420.41,0.00022191,3]
[349521984,1737276636852,-500.0,0.00022191,3]
[349521985,1737276636862,-7007.89,0.00022191,3]
[349521986,1737276636871,-151.0,0.00022191,7]
[349521987,1737276636880,-151.0,0.00022191,7]
[349521988,1737276636889,-500.0,0.00022191,3]
[349521989,1737276636898,-609.18,0.00022191,3]
[349521990,1737276636908,-654.3,0.00022191,3]
[349521991,1737276636918,-500.0,0.00022191,3]
[349521992,1737276636927,-500.0,0.00022191,3]
[349521993,1737276636936,-151.0,0.00022191,7]
[349521994,1737276636945,-500.0,0.00022191,3]
[349521995,1737276636955,-193.66401,0.00022191,7]
[349521996,1737276636964,-500.0,0.00022191,3]
[349521997,1737276636975,-500.0,0.00022191,3]
[349521998,1737276636984,-500.0,0.00022191,3]
[349521999,1737276636994,-500.0,0.00022191,3]
[349522000,1737276637003,-500.0,0.00022191,3]
[349522001,1737276637015,-500.0,0.00022191,3]
[349522002,1737276637025,-2037.63,0.00022191,3]
[349522003,1737276637034,-500.0,0.00022191,3]
[349522004,1737276637044,-517.3,0.00022191,3]
[349522005,1737276637054,-500.0,0.00022191,3]
[349522006,1737276637064,-500.0,0.00022191,3]
[349522007,1737276637073,-500.0,0.00022191,3]
[349522008,1737276637083,-500.0,0.00022191,3]
[349522009,1737276637092,-456.81521285,0.00022191,3]
[349522010,1737276637102,-1252.86,0.00022191,3]
[349522011,1737276637111,-1493.86,0.00022191,3]
[349522012,1737276637121,-500.0,0.00022191,3]
[349522013,1737276637130,-1518.29,0.00022191,3]
[349522014,1737276637139,-353.6953314,0.00022247,2]
[349522015,1737276637151,-353.6953314,0.00022247,2]
[349522016,1737276637161,-353.6953314,0.00022247,2]
[349522017,1737276637170,-353.6953314,0.00022247,2]
[349522018,1737276637179,-157.3327369,0.00022247,2]
[349522019,1737276637189,-925.29243957,0.0002227,2]
[349522020,1737276637199,-279.31120837,0.00022298,2]
[349522021,1737276637209,-2725.45192911,0.00022299,5]
[349522022,1737276637218,-22964.48726938,0.000223,5]
[349522023,1737276637228,-96749.33647629,0.000223,15]
[349522024,1737276637246,-2313.04438465,0.000223,15]
[349522109,1737276640519,-184.06980475,0.00021817,2]
[349522110,1737276640529,-3619.47,0.00021917,3]
[349522111,1737276640538,-173.262944,0.00022054,7]
[349522112,1737276640548,-173.262944,0.00022054,7]
[349522113,1737276640557,-151.307058,0.00022054,7]
[349522114,1737276640567,-3619.47,0.00022054,3]
[349522115,1737276640577,-173.262944,0.00022191,7]
[349522116,1737276640586,-173.262944,0.00022191,7]
[349522117,1737276640596,-3619.47,0.00022191,3]
[349522118,1737276640606,-31771.36629872,0.000223,15]
[349522119,1737276640629,-147287.82686483,0.000223,15]
[349522120,1737276640639,-692.56245252,0.000223,2]
[349522121,1737276640649,-692.56245251,0.000223,2]
[349522122,1737276640659,-692.56245251,0.000223,2]
[349522123,1737276640669,-692.56245251,0.000223,2]
[349522124,1737276640679,-153.188739,0.000223,7]
[349522125,1737276640689,-151.0,0.000223,7]
[349522126,1737276640698,-151.0,0.000223,7]
[349522127,1737276640708,-151.0,0.000223,7]
[349522128,1737276640718,-151.0,0.000223,7]
[349522129,1737276640727,-151.0,0.000223,7]
[349522130,1737276640737,-192.447041,0.000223,7]
[349522131,1737276640747,-151.0,0.000223,7]
[349522132,1737276640756,-151.0,0.000223,7]
[349522133,1737276640768,-151.0,0.000223,7]
[349522134,1737276640777,-151.0,0.000223,7]
[349522135,1737276640787,-151.0,0.000223,7]
[349522136,1737276640797,-156.575497,0.000223,7]
[349522137,1737276640806,-151.0,0.000223,7]
[349522138,1737276640816,-152.313665,0.000223,7]
[349522139,1737276640826,-151.0,0.000223,7]
[349522140,1737276640836,-151.0,0.000223,7]
[349522141,1737276640845,-519.464589,0.000223,7]
[349522142,1737276640854,-519.464589,0.000223,7]
[349522143,1737276640864,-151.0,0.000223,2]
[349522144,1737276640873,-151.0,0.000223,2]
[349522145,1737276640883,-151.0,0.000223,7]
[349522146,1737276640893,-154.704502,0.000223,7]
[349522147,1737276640903,-151.0,0.000223,7]
[349522148,1737276640912,-445.661822,0.000223,7]
[349522149,1737276640922,-445.661822,0.000223,7]
[349522150,1737276640933,-368.852256,0.000223,7]
[349522151,1737276640942,-368.852256,0.000223,7]
[349522152,1737276640952,-152.904828,0.000223,7]
[349522153,1737276640962,-151.0,0.000223,7]
[349522154,1737276640972,-151.0,0.000223,7]
[349522155,1737276640982,-151.0,0.000223,7]
[349522156,1737276640993,-151.0,0.000223,7]
[349522157,1737276641002,-208.651473,0.000223,7]
[349522158,1737276641013,-208.651473,0.000223,7]
[349522159,1737276641023,-151.0,0.000223,7]
[349522160,1737276641032,-151.0,0.000223,7]
[349522161,1737276641041,-151.0,0.000223,7]
[349522162,1737276641051,-153.902647,0.000223,7]
[349522163,1737276641060,-151.0,0.000223,7]
[349522164,1737276641069,-313.40433,0.000223,7]
[349522165,1737276641079,-151.0,0.000223,7]
[349522166,1737276641089,-313.40433,0.000223,7]
[349522167,1737276641098,-151.0,0.000223,7]
[349522168,1737276641108,-151.0,0.000223,7]
[349522169,1737276641118,-173.262944,0.000223,7]
[349522170,1737276641127,-500.0,0.00022328,3]
[349522171,1737276641137,-500.0,0.00022328,3]
[349522172,1737276641147,-500.0,0.00022328,3]
[349522173,1737276641161,-500.0,0.00022328,3]
[349522174,1737276641170,-500.0,0.00022328,3]
[349522175,1737276641180,-500.0,0.00022328,3]
[349522176,1737276641189,-500.0,0.00022328,3]
[349522177,1737276641201,-500.0,0.00022328,3]
[349522178,1737276641320,-500.0,0.00022328,3]
[349522179,1737276641329,-1424.38,0.00022328,3]
[349522180,1737276641339,-500.0,0.00022328,3]
[349522181,1737276641348,-500.0,0.00022328,3]
[349522182,1737276641359,-500.0,0.00022328,3]
[349522183,1737276641368,-500.0,0.00022328,3]
[349522184,1737276641378,-500.0,0.00022328,3]
[349522185,1737276641388,-500.0,0.00022328,3]
[349522186,1737276641397,-500.0,0.00022328,3]
[349522187,1737276641407,-500.0,0.00022328,3]
[349522188,1737276641417,-500.0,0.00022328,3]
[349522189,1737276641426,-500.0,0.00022328,3]
[349522190,1737276641436,-814.87,0.00022328,3]
[349522191,1737276641445,-151.0,0.00022328,7]
[349522192,1737276641454,-500.0,0.00022328,3]
[349522193,1737276641463,-156.698202,0.00022328,7]
[349522194,1737276641473,-151.0,0.00022328,7]
[349522195,1737276641482,-504.56,0.00022328,3]
[349522196,1737276641491,-500.0,0.00022328,3]
[349522197,1737276641501,-500.0,0.00022328,3]
[349522198,1737276641511,-500.0,0.00022328,3]
[349522199,1737276641521,-500.0,0.00022328,3]
[349522200,1737276641531,-500.0,0.00022328,3]
[349522201,1737276641540,-519.464589,0.00022328,7]
[349522202,1737276641550,-519.464589,0.00022328,7]
[349522203,1737276641560,-500.0,0.00022328,3]
[349522204,1737276641570,-500.0,0.00022328,3]
[349522205,1737276641579,-151.0,0.00022328,2]
[349522206,1737276641590,-500.0,0.00022328,3]
[349522207,1737276641599,-151.0,0.00022328,2]
[349522208,1737276641608,-500.0,0.00022328,3]
[349522209,1737276641619,-500.0,0.00022328,3]
[349522210,1737276641629,-500.0,0.00022328,3]
[349522211,1737276641640,-500.0,0.00022328,3]
[349522212,1737276641649,-151.0,0.00022328,7]
[349522213,1737276641659,-500.0,0.00022328,3]
[349522214,1737276641668,-500.0,0.00022328,3]
[349522215,1737276641679,-445.661822,0.00022328,7]
[349522216,1737276641688,-445.661822,0.00022328,7]